fUSD/lending_fUSD_20251127
["ID","MTS","AMOUNT","RATE_DAILY","PERIOD"]
[394966083,1764222645583,-195.85797524,0.00015362,2]
[394966084,1764222645592,-159.09802187,0.00015407,2]
[394966085,1764222645602,-988.19,0.00015424,2]
[394966086,1764222645614,-174.77130572,0.00015473,2]
[394966087,1764222645623,-974.36404,0.000155,2]
[394966088,1764222645633,-274.95,0.00015522,2]
[394966089,1764222645642,-485.5337708,0.00015618,2]
[394966090,1764222645651,-1877.24241879,0.0001562,2]
[394966091,1764222645661,-166.66,0.00015629,2]
[394966092,1764222645670,-664.0,0.00015646,2]
[394966093,1764222645680,-444.0,0.00015654,2]
[394966094,1764222645690,-988.19,0.00015698,2]
[394966095,1764222645699,-582.87,0.00015719,2]
[394966096,1764222645709,-974.36403,0.0001575,2]
[394966097,1764222645718,-159.09802187,0.00015763,2]
[394966098,1764222645728,-166.66,0.00015952,2]
[394966099,1764222645737,-988.19,0.00015972,2]
[394966100,1764222645747,-204.8,0.00015976,2]
[394966101,1764222645756,-974.36403,0.00016,2]
[394966102,1764222645765,-200.0,0.00016012,2]
[394966103,1764222645775,-152.0,0.00016015,2]
[394966104,1764222645788,-152.0,0.00016015,2]
[394966105,1764222645798,-152.0,0.00016015,2]
[394966106,1764222645807,-152.0,0.00016015,2]
[394966107,1764222645816,-152.0,0.00016015,2]
[394966108,1764222645826,-152.0,0.00016015,2]
[394966110,1764222645835,-152.0,0.00016015,2]
[394966112,1764222645844,-152.0,0.00016015,2]
[394966114,1764222645853,-152.0,0.00016015,2]
[394966116,1764222645865,-152.0,0.00016015,2]
[394966117,1764222645874,-152.0,0.00016015,2]
[394966120,1764222645884,-152.0,0.00016015,2]
[394966122,1764222645893,-152.0,0.00016015,2]
[394966123,1764222645902,-152.0,0.00016015,2]
[394966126,1764222645911,-152.0,0.00016015,2]
[394966128,1764222645921,-152.0,0.00016015,2]
[394966129,1764222645930,-152.0,0.00016015,2]
[394966131,1764222645939,-152.0,0.00016015,2]
[394966133,1764222645948,-152.0,0.00016015,2]
[394966135,1764222645958,-152.0,0.00016015,2]
[394966137,1764222645967,-152.0,0.00016015,2]
[394966139,1764222645976,-152.0,0.00016015,2]
[394966141,1764222645985,-152.0,0.00016015,2]
[394966143,1764222645994,-152.0,0.00016015,2]
[394966145,1764222646003,-152.0,0.00016015,2]
[394966147,1764222646012,-152.0,0.00016015,2]
[394966149,1764222646021,-152.0,0.00016015,2]
[394966151,1764222646030,-151.0,0.00016021,2]
[394966153,1764222646039,-831.0,0.00016021,2]
[394966155,1764222646048,-160.79272275,0.00016025,2]
[394966157,1764222646057,-1038.77394508,0.00016068,2]
[394966159,1764222646067,-2983.0,0.00016101,2]
[394966161,1764222646076,-159.09802187,0.00016119,2]
[394966163,1764222646085,-261.47612002,0.00016128,2]
[394966165,1764222646095,-1274.2452761,0.00016168,2]
[394966166,1764222646104,-25551.0456421,0.00016168,2]
[394966167,1764222646113,-519.22420368,0.00016173,2]
[394966168,1764222646123,-322.61,0.00016184,2]
[394966169,1764222646132,-3439.0,0.00016196,2]
[394966170,1764222646141,-1321.0,0.00016196,2]
[394966171,1764222646150,-610.0,0.00016196,2]
[394966172,1764222646159,-1602.0,0.00016196,2]
[394966173,1764222646169,-1257.0,0.00016196,2]
[394966174,1764222646179,-823.0,0.00016196,2]
[394966175,1764222646188,-1215.003,0.00016196,2]
[394966176,1764222646197,-909.0,0.00016196,2]
[394966177,1764222646207,-660.0,0.00016196,2]
[394966178,1764222646216,-150.0,0.00016196,2]
[394966179,1764222646226,-2717.0,0.00016196,2]
[394966180,1764222646236,-562.0,0.00016196,2]
[394966181,1764222646245,-6503.0,0.00016196,2]
[394966182,1764222646254,-150.00000001,0.000162,2]
[394966183,1764222646263,-150.0,0.000162,2]
[394966184,1764222646273,-5000.0,0.000162,5]
[394966185,1764222646282,-988.19,0.00016246,2]
[394966186,1764222646292,-974.36404,0.0001625,2]
[394966187,1764222646302,-510.0,0.0001627,2]
[394966188,1764222646310,-166.66,0.00016274,2]
[394966189,1764222646319,-209.336,0.00016308,2]
[394966190,1764222646329,-250.0,0.00016308,2]
[394966191,1764222646338,-219.525,0.00016308,2]
[394966192,1764222646347,-150.0,0.00016308,2]
[394966193,1764222646355,-154.434,0.00016308,2]
[394966194,1764222646364,-150.0,0.00016308,2]
[394966195,1764222646373,-150.0,0.00016308,2]
[394966196,1764222646382,-150.323,0.00016308,2]
[394966197,1764222646391,-300.0,0.00016337,2]
[394966198,1764222646399,-274.95,0.00016339,2]
[394966199,1764222646408,-1038.77394502,0.00016373,2]
[394966200,1764222646417,-565.77742129,0.00016422,2]
[394966201,1764222646426,-501.46438192,0.00016422,2]
[394966202,1764222646434,-500.0,0.00016422,2]
[394966203,1764222646443,-500.0,0.00016422,2]
[394966204,1764222646452,-500.0,0.00016422,2]
[394966205,1764222646461,-512.43353086,0.00016422,2]
[394966206,1764222646469,-500.0,0.00016422,2]
[394966207,1764222646478,-501.29118203,0.00016422,2]
[394966208,1764222646487,-223.84292275,0.00016438,2]
[394966209,1764222646496,-5849.45,0.00016438,2]
[394966210,1764222646505,-800.0,0.00016438,2]
[394966211,1764222646514,-705.9064321,0.00016438,2]
[394966212,1764222646523,-151.0,0.00016438,2]
[394966213,1764222646532,-159.09802187,0.00016476,2]
[394966214,1764222646541,-988.19,0.0001652,2]
[394966215,1764222646550,-299.52238511,0.00016524,2]
[394966216,1764222646559,-420.0,0.00016576,2]
[394966217,1764222646568,-166.66,0.00016596,2]
[394966218,1764222646577,-250.0,0.00016634,2]
[394966219,1764222646586,-1478.25,0.00016639,2]
[394966220,1764222646597,-1680.0,0.0001666,2]
[394966221,1764222646606,-250.0,0.00016663,2]
[394966222,1764222646614,-250.0,0.00016663,2]
[394966223,1764222646623,-300.0,0.00016663,2]
[394966224,1764222646770,-300.0,0.00016663,2]
[394966225,1764222646781,-300.0,0.00016663,2]
[394966226,1764222646791,-300.0,0.00016663,2]
[394966227,1764222646801,-300.0,0.00016663,2]
[394966228,1764222646810,-250.0,0.00016663,2]
[394966229,1764222646820,-1038.77394502,0.00016679,2]
[394966230,1764222646831,-988.19,0.00016794,2]
[394966231,1764222646842,-159.09802187,0.00016832,2]
[394966232,1764222646852,-954.33349109,0.0001688,2]
[394966233,1764222664689,517.225,0.00015051,2]
[394966247,1764222691489,9482.785,0.00015051,2]
[394966248,1764222691516,10000.01,0.00015051,2]
[394966249,1764222691540,10000.01,0.00015051,2]
[394966250,1764222691565,10000.01,0.00015051,2]
[394966251,1764222691590,10000.01,0.00015051,2]
[394966252,1764222691616,10000.01,0.00015051,2]
[394966253,1764222691642,10000.01,0.00015051,2]
[394966254,1764222691667,10000.01,0.00015051,2]
[394966255,1764222691693,10000.01,0.00015051,2]
[394966256,1764222691716,10000.01,0.00015051,2]
[394966257,1764222691750,9000.0,0.00015051,2]
[394966258,1764222701179,-1471.45750775,0.00015051,2]
[394966259,1764222701274,-10000.01,0.00015051,2]
[394966260,1764222701416,-10000.01,0.00015051,2]
[394966261,1764222701520,-10000.01,0.00015051,2]
[394966262,1764222701634,-10000.01,0.00015051,2]
[394966263,1764222701756,-10000.01,0.00015051,2]
[394966264,1764222701943,-10000.01,0.00015051,2]
[394966265,1764222702053,-10000.01,0.00015051,2]
[394966266,1764222702166,-10000.01,0.00015051,2]
[394966269,1764222709896,-10000.01,0.00015051,2]
[394966270,1764222710305,-10000.01,0.00015051,2]
[394966271,1764222714104,-10000.01,0.00015051,2]
[394966272,1764222714239,-10000.01,0.00015051,2]
[394966273,1764222714328,-10000.01,0.00015051,2]
[394966274,1764222714433,-10000.01,0.00015051,2]
[394966275,1764222714560,-10000.01,0.00015051,2]
[394966276,1764222714677,-10000.01,0.00015051,2]
[394966277,1764222714793,-10000.01,0.00015051,2]
[394966278,1764222714927,-10000.01,0.00015051,2]
[394966279,1764222717290,-10000.01,0.00015051,2]
[394966280,1764222717555,-10000.01,0.00015051,2]
[394966281,1764222720240,-10000.01,0.00015051,2]
[394966282,1764222720344,-10000.01,0.00015051,2]
[394966283,1764222720464,-10000.01,0.00015051,2]
[394966284,1764222720605,-10000.01,0.00015051,2]
[394966285,1764222720724,-10000.01,0.00015051,2]
[394966286,1764222721036,-10000.01,0.00015051,2]
[394966287,1764222721172,-10000.01,0.00015051,2]
[394966288,1764222721301,-10000.01,0.00015051,2]
[394966289,1764222723279,-10000.01,0.00015051,2]
[394966290,1764222726188,-10000.01,0.00015051,2]
[394966291,1764222726291,-10000.01,0.00015051,2]
[394966292,1764222726433,-10000.01,0.00015051,2]
[394966293,1764222726542,-10000.01,0.00015051,2]
[394966294,1764222726655,-10000.01,0.00015051,2]
[394966295,1764222726768,-10000.01,0.00015051,2]
[394966296,1764222726917,-10000.01,0.00015051,2]
[394966297,1764222727007,-10000.01,0.00015051,2]
[394966298,1764222727165,-10000.01,0.00015051,2]
[394966299,1764222729752,-10000.01,0.00015051,2]
[394966300,1764222732193,-10000.01,0.00015051,2]
[394966301,1764222732338,-10000.01,0.00015051,2]
[394966302,1764222732442,-10000.01,0.00015051,2]
[394966303,1764222732597,-10000.01,0.00015051,2]
[394966304,1764222732709,-10000.01,0.00015051,2]
[394966305,1764222732837,-10000.01,0.00015051,2]
[394966306,1764222733096,-10000.01,0.00015051,2]
[394966307,1764222733193,-10000.01,0.00015051,2]
[394966308,1764222733307,-10000.01,0.00015051,2]
[394966309,1764222738251,-151.0,0.00015048,2]
[394966310,1764222738280,-162.83089668,0.00015048,2]
[394966311,1764222738336,-9372.34820664,0.00015051,2]
[394966312,1764222738362,-10000.01,0.00015051,2]
[394966313,1764222738453,-10000.01,0.00015051,2]
[394966314,1764222738566,-10000.01,0.00015051,2]
[394966315,1764222738672,-10000.01,0.00015051,2]
[394966316,1764222738773,-10000.01,0.00015051,2]
[394966317,1764222738883,-10000.01,0.00015051,2]
[394966318,1764222739000,-10000.01,0.00015051,2]
[394966319,1764222739112,-10000.01,0.00015051,2]
[394966320,1764222739273,-10000.01,0.00015051,2]
[394966324,1764222750292,-10000.01,0.00015051,2]
[394966325,1764222866769,-280.72856826,0.00014951,2]
[394966326,1764222869022,-300.00000017,0.00014951,2]
[394966327,1764222870336,592.37,0.00013699,2]
[394966338,1764223181913,-242.27323157,0.00014951,2]
[394966339,1764223181947,-250.0,0.00015001,2]
[394966340,1764223181976,-151.0,0.00015042,2]
[394966341,1764223182005,-151.0,0.00015042,2]
[394966342,1764223182034,-151.0,0.00015042,2]
[394966343,1764223182067,-511.64747322,0.00015042,2]
[394966344,1764223182099,-151.0,0.00015042,2]
[394966345,1764223182130,-151.0,0.00015042,2]
[394966346,1764223182159,-151.0,0.00015042,2]
[394966347,1764223182189,-151.0,0.00015042,2]
[394966348,1764223182217,-151.0,0.00015042,2]
[394966349,1764223182245,-151.0,0.00015042,2]
[394966350,1764223182273,-194.9656607,0.00015042,2]
[394966351,1764223182301,-500.0,0.00015042,2]
[394966352,1764223182329,-500.0,0.00015042,2]
[394966353,1764223182358,-500.0,0.00015042,2]
[394966354,1764223182385,-500.0,0.00015042,2]
[394966355,1764223182415,-384.23726902,0.00015042,2]
[394966356,1764223182563,-115.76273098,0.00015042,2]
[394966357,1764223182591,-568.9349664,0.00015042,2]
[394966358,1764223182619,-300.0,0.0001505,2]
[394966359,1764223182648,-1200.0,0.0001505,2]
[394966360,1764223182677,-300.0,0.0001505,2]
[394966361,1764223182705,-500.0,0.0001505,2]
[394966362,1764223182734,-500.0,0.0001505,2]
[394966363,1764223182766,-500.0,0.0001505,2]
[394966364,1764223182795,-500.0,0.0001505,2]
[394966365,1764223182823,-500.0,0.0001505,2]
[394966366,1764223183267,-115.76273098,0.0001505,2]
[394966367,1764223183280,-30.61460524,0.0001505,2]
[394966368,1764223187793,-353.62266378,0.0001505,2]
[394966369,1764223187826,-500.0,0.0001505,2]
[394966370,1764223187855,-500.0,0.0001505,2]
[394966371,1764223187884,-500.0,0.0001505,2]
[394966372,1764223187912,-500.0,0.0001505,2]
[394966373,1764223187945,-500.0,0.0001505,2]
[394966374,1764223187974,-500.0,0.0001505,2]
[394966375,1764223188003,-555.4175061,0.0001505,2]
[394966376,1764223188035,-500.0,0.0001505,2]
[394966377,1764223188066,-536.68037784,0.0001505,2]
[394966378,1764223188247,-108.56890456,0.0001505,2]
[394966379,1764223193842,-391.43109544,0.0001505,2]
[394966380,1764223193872,-500.0,0.0001505,2]
[394966381,1764223193905,-500.0,0.0001505,2]
[394966382,1764223193938,-500.0,0.0001505,2]
[394966383,1764223193967,-500.0,0.0001505,2]
[394966384,1764223193995,-500.0,0.0001505,2]
[394966385,1764223194028,-500.0,0.0001505,2]
[394966386,1764223194067,-500.0,0.0001505,2]
[394966387,1764223194100,-500.0,0.0001505,2]
[394966388,1764223194133,-500.0,0.0001505,2]
[394966389,1764223194243,-500.0,0.0001505,2]
[394966390,1764223194281,-500.0,0.0001505,2]
[394966391,1764223194316,-379.95463688,0.0001505,2]
[394966392,1764223194349,-500.0,0.0001505,2]
[394966393,1764223194381,-500.0,0.0001505,2]
[394966394,1764223194412,-500.0,0.0001505,2]
[394966395,1764223194444,-500.0,0.0001505,2]
[394966396,1764223194475,-500.0,0.0001505,2]
[394966397,1764223194505,-500.0,0.0001505,2]
[394966398,1764223194538,-500.0,0.0001505,2]
[394966399,1764223194799,-217.14780912,0.0001505,2]
[394966400,1764223194813,-240.10072624,0.0001505,2]
[394966401,1764223211781,-300.0,0.00014951,2]
[394966402,1764223234866,-166.7998894,0.00014951,2]
[394966403,1764223234897,-2.56232946,0.00014951,2]
[394966404,1764223237163,-178.93494479,0.00014951,2]
[394966405,1764223240361,-500.0,0.00014951,2]
[394966411,1764223420256,166.66,0.00014773,2]
[394966412,1764223451821,-191.11272575,0.00014951,2]
[394966413,1764223451843,-308.88727425,0.00014951,2]
[394966414,1764223454210,-212.0,0.00014951,2]
[394966415,1764223455790,-239.70283635,0.00014951,2]
[394966424,1764223686360,9833.35,0.00014951,2]
[394966425,1764223686385,10000.01,0.00014951,2]
[394966426,1764223686411,10000.01,0.00014951,2]
[394966427,1764223686437,10000.01,0.00014951,2]
[394966428,1764223686462,10000.01,0.00014951,2]
[394966429,1764223686488,10000.01,0.00014951,2]
[394966430,1764223686514,10000.01,0.00014951,2]
[394966431,1764223686540,10000.01,0.00014951,2]
[394966432,1764223686566,10000.01,0.00014951,2]
[394966433,1764223686593,10000.01,0.00014951,2]
[394966434,1764223690470,214.48,0.00025,120]
[394966435,1764223700900,-2877.89660526,0.00014851,2]
[394966436,1764223709917,-4244.21678948,0.00014951,2]
[394966437,1764223716432,-10000.01,0.00014951,2]
[394966445,1764223831616,-210.0,0.00014758,2]
[394966447,1764223831626,-114.59617748,0.00014758,2]
[394966448,1764223831675,-85.40382252,0.00014758,2]
[394966449,1764223831685,-158.6543716,0.0001485,2]
[394966450,1764223831694,-163.66255297,0.00014851,2]
[394966451,1764223831703,-168.13036641,0.00014851,2]
[394966452,1764223831713,-150.0,0.00014949,2]
[394966453,1764223831723,-300.0,0.00014949,2]
[394966454,1764223831732,-446.69428557,0.00014949,2]
[394966455,1764223831743,-753.30571443,0.00014949,2]
[394966456,1764223831752,-125.83440717,0.0001495,2]
[394966457,1764223831788,-374.16559283,0.0001495,2]
[394966458,1764223831797,-236.94474394,0.0001495,2]
[394966459,1764223831806,-588.7983145,0.0001495,2]
[394966460,1764223831816,-500.0,0.0001495,2]
[394966461,1764223831825,-536.53829949,0.0001495,2]
[394966462,1764223831844,-170.74226421,0.0001495,2]
[394966463,1764223831855,-500.0,0.0001495,2]
[394966464,1764223831864,-500.0,0.0001495,2]
[394966465,1764223831875,-500.0,0.0001495,2]
[394966466,1764223831884,-500.0,0.0001495,2]
[394966467,1764223831894,-500.0,0.0001495,2]
[394966468,1764223831904,-500.0,0.0001495,2]
[394966469,1764223831913,-500.0,0.0001495,2]
[394966470,1764223831923,-500.0,0.0001495,2]
[394966471,1764223831932,-500.0,0.0001495,2]
[394966472,1764223831942,-500.0,0.0001495,2]
[394966473,1764223831952,-500.0,0.0001495,2]
[394966474,1764223831963,-500.0,0.0001495,2]
[394966475,1764223831972,-500.0,0.0001495,2]
[394966476,1764223831983,-500.0,0.0001495,2]
[394966477,1764223831992,-500.0,0.0001495,2]
[394966479,1764223832002,-500.0,0.0001495,2]
[394966482,1764223832011,-500.0,0.0001495,2]
[394966484,1764223832022,-500.0,0.0001495,2]
[394966486,1764223832032,-500.0,0.0001495,2]
[394966488,1764223832041,-500.0,0.0001495,2]
[394966490,1764223832050,-500.0,0.0001495,2]
[394966492,1764223832060,-500.0,0.0001495,2]
[394966494,1764223832069,-500.0,0.0001495,2]
[394966496,1764223832079,-500.0,0.0001495,2]
[394966498,1764223832089,-500.0,0.0001495,2]
[394966499,1764223832098,-500.0,0.0001495,2]
[394966500,1764223832107,-500.0,0.0001495,2]
[394966501,1764223832117,-500.0,0.0001495,2]
[394966502,1764223832127,-500.0,0.0001495,2]
[394966503,1764223832136,-500.0,0.0001495,2]
[394966504,1764223832146,-500.0,0.0001495,2]
[394966505,1764223832156,-500.0,0.0001495,2]
[394966506,1764223832166,-500.0,0.0001495,2]
[394966507,1764223832176,-500.0,0.0001495,2]
[394966508,1764223832187,-500.0,0.0001495,2]
[394966509,1764223832196,-500.0,0.0001495,2]
[394966510,1764223832205,-500.0,0.0001495,2]
[394966511,1764223832216,-500.0,0.0001495,2]
[394966512,1764223832233,-500.0,0.0001495,2]
[394966513,1764223832242,-563.32073909,0.0001495,2]
[394966514,1764223832252,-500.0,0.0001495,2]
[394966515,1764223832262,-500.0,0.0001495,2]
[394966516,1764223832274,-500.0,0.0001495,2]
[394966517,1764223832284,-500.0,0.0001495,2]
[394966518,1764223832293,-500.0,0.0001495,2]
[394966519,1764223832303,-500.0,0.0001495,2]
[394966520,1764223832313,-500.0,0.0001495,2]
[394966521,1764223832323,-500.0,0.0001495,2]
[394966522,1764223832333,-500.0,0.0001495,2]
[394966523,1764223832342,-500.0,0.0001495,2]
[394966524,1764223832353,-500.0,0.0001495,2]
[394966525,1764223832363,-500.0,0.0001495,2]
[394966526,1764223832372,-500.0,0.0001495,2]
[394966527,1764223832381,-500.0,0.0001495,2]
[394966528,1764223832390,-500.0,0.0001495,2]
[394966529,1764223832399,-500.0,0.0001495,2]
[394966530,1764223832409,-500.0,0.0001495,2]
[394966531,1764223832419,-500.0,0.0001495,2]
[394966532,1764223832428,-500.0,0.0001495,2]
[394966533,1764223832437,-500.0,0.0001495,2]
[394966534,1764223832447,-500.0,0.0001495,2]
[394966535,1764223832456,-500.0,0.0001495,2]
[394966536,1764223832466,-500.0,0.0001495,2]
[394966537,1764223832475,-500.0,0.0001495,2]
[394966538,1764223832484,-500.0,0.0001495,2]
[394966539,1764223832493,-500.0,0.0001495,2]
[394966540,1764223832503,-500.0,0.0001495,2]
[394966541,1764223832512,-500.0,0.0001495,2]
[394966542,1764223832521,-500.0,0.0001495,2]
[394966543,1764223832531,-500.0,0.0001495,2]
[394966545,1764223832540,-500.0,0.0001495,2]
[394966547,1764223832549,-500.0,0.0001495,2]
[394966549,1764223832558,-500.0,0.0001495,2]
[394966551,1764223832568,-500.0,0.0001495,2]
[394966553,1764223832577,-484.17477387,0.0001495,2]
[394966554,1764223832587,-500.0,0.0001495,2]
[394966555,1764223832596,-500.0,0.0001495,2]
[394966556,1764223832606,-500.0,0.0001495,2]
[394966557,1764223832616,-500.0,0.0001495,2]
[394966558,1764223832625,-500.0,0.0001495,2]
[394966559,1764223832634,-279.72598745,0.0001495,2]
[394966560,1764223832643,-500.0,0.0001495,2]
[394966561,1764223832653,-500.0,0.0001495,2]
[394966562,1764223832663,-447.97769256,0.0001495,2]
[394966563,1764223832672,-500.0,0.0001495,2]
[394966564,1764223832681,-445.91619451,0.0001495,2]
[394966565,1764223832690,-500.0,0.0001495,2]
[394966566,1764223832699,-500.0,0.0001495,2]
[394966567,1764223832708,-500.0,0.0001495,2]
[394966568,1764223832718,-500.0,0.0001495,2]
[394966569,1764223832727,-500.0,0.0001495,2]
[394966570,1764223832903,-500.0,0.0001495,2]
[394966571,1764223832927,-212.10436934,0.0001495,2]
[394966572,1764223832936,-1504.8317,0.0001495,2]
[394966573,1764223832946,-645922.33321052,0.00014951,2]
[394966574,1764223832955,-2207.00995026,0.00014951,2]
[394966575,1764223832964,-307.82286787,0.00014951,2]
[394966576,1764223832974,-178.46698357,0.00014951,2]
[394966577,1764223832984,-529.6393894,0.00014951,2]
[394966578,1764223832993,-3526.5503,0.00014951,2]
[394966579,1764223833003,-500.0,0.00014973,2]
[394966580,1764223833012,-500.0,0.00014973,2]
[394966581,1764223833021,-503.20529526,0.00014973,2]
[394966582,1764223833031,-500.0,0.00014973,2]
[394966583,1764223833041,-511.53997664,0.0001498,2]
[394966584,1764223833186,-536.75718701,0.0001498,2]
[394966585,1764223833196,-23534.5885799,0.0001504,2]
[394966586,1764223833208,-22235.7844967,0.0001504,2]
[394966587,1764223833218,-6795.7789138,0.00015044,2]
[394966588,1764223833232,-300.64,0.0001505,2]
[394966589,1764223833241,-151.0,0.0001505,2]
[394966590,1764223833251,-151.0,0.0001505,2]
[394966591,1764223833261,-1000.0,0.0001505,2]
[394966592,1764223833271,-1972.53794303,0.0001505,2]
[394966593,1764223833282,-527.46205697,0.0001505,2]
[394966594,1764223833291,-22396.813916,0.00015051,2]
[394966595,1764223833301,-5478.2199551,0.00015051,2]
[394966596,1764223833310,-166.66,0.00015084,2]
[394966597,1764223833319,-319.83513133,0.0001509,2]
[394966598,1764223833328,-9999.99,0.0001515,2]
[394966599,1764223833337,-2836.57,0.0001515,2]
[394966600,1764223833347,-29999.99,0.0001515,2]
[394966601,1764223833356,-2877.8966052,0.0001519,2]
[394966602,1764223833365,-350.0,0.00015273,2]
[394966603,1764223833374,-168.13036641,0.00015287,2]
[394966604,1764223833383,-300.64,0.00015324,2]
[394966605,1764223833393,-166.66,0.00015395,2]
[394966606,1764223833402,-1075.0,0.00015429,2]
[394966607,1764223833411,-198.0,0.00015429,2]
[394966608,1764223833420,-421.0,0.0001546,2]
[394966609,1764223833430,-209.0,0.00015485,2]
[394966610,1764223833439,-21666.1952,0.00015504,2]
[394966611,1764223833449,-1000.0,0.00015504,2]
[394966612,1764223833458,-266.0,0.00015514,2]
[394966613,1764223833467,-1000.0,0.00015521,2]
[394966614,1764223833477,-2877.8966052,0.00015529,2]
[394966615,1764223833488,-1000.0,0.00015586,2]
[394966616,1764223833498,-300.64,0.00015598,2]
[394966617,1764223833511,-32787.94968686,0.00015604,2]
[394966618,1764223833520,-643.0,0.00015638,2]
[394966619,1764223833530,-222.0,0.00015638,2]
[394966620,1764223833540,-200.0,0.00015639,2]
[394966621,1764223833549,-218.0,0.00015669,2]
[394966622,1764223833559,-392.0,0.00015701,2]
[394966623,1764223833568,-166.66,0.00015706,2]
[394966624,1764223833577,-168.13036641,0.00015722,2]
[394966625,1764223833587,-2877.8966052,0.00015867,2]
[394966626,1764223833596,-300.64,0.00015872,2]
[394966627,1764223833606,-801.47206509,0.0001601,2]
[394966628,1764223833618,-433.69278607,0.0001601,2]
[394966629,1764223833629,-919.95711641,0.0001601,2]
[394966630,1764223837730,-338.0,0.00015364,2]
[394966631,1764223837740,-2479.32803243,0.0001601,2]
[394966632,1764223837749,-151.0,0.0001601,2]
[394966633,1764223837758,-166.66,0.00016017,2]
[394966634,1764223837767,-99.26166883,0.00016032,2]
[394966635,1764223837798,-200.73833117,0.00016032,2]
[394966636,1764223837807,-300.0,0.0001604,2]
[394966637,1764223837817,-271.87,0.00016066,2]
[394966638,1764223837827,-1038.55166883,0.00016068,2]
[394966639,1764223837841,-461.44833117,0.00016068,2]
[394966640,1764223837851,-255.0,0.0001607,2]
[394966641,1764223837860,-145.64244341,0.00016077,2]
[394966642,1764223837905,-174.19268792,0.00016077,2]
[394966643,1764223837914,-300.64606144,0.00016146,2]
[394966644,1764223837925,-168.13036641,0.00016158,2]
[394966645,1764223837934,-107.03088403,0.00016206,2]
[394966653,1764223839796,-281.64348447,0.00016206,2]
[394966654,1764223839806,-1649.09421818,0.00016206,2]
[394966656,1764223839817,-1121.77150299,0.00016206,2]
[394966658,1764223839826,-300.0,0.00016234,2]
[394966660,1764223839835,-276.21485247,0.00016234,2]
[394966662,1764223839845,-610.0,0.00016257,2]
[394966664,1764223839855,-1602.0,0.00016257,2]
[394966666,1764223839864,-823.0,0.00016257,2]
[394966668,1764223839874,-1257.0,0.00016257,2]
[394966670,1764223839883,-791.518,0.00016257,2]
[394966672,1764223839893,-2717.0,0.00016257,2]
[394966674,1764223839903,-562.0,0.00016257,2]
[394966676,1764223839912,-6503.0,0.00016257,2]
[394966678,1764223839922,-182.58,0.00016259,2]
[394966680,1764223839931,-501.01450029,0.00016275,2]
[394966682,1764223839941,-502.14410121,0.00016295,2]
[394966684,1764223839950,-999.0,0.00016304,3]
[394966686,1764223839960,-166.66,0.00016328,2]
[394966688,1764223839970,-250.0,0.00016336,2]
[394966690,1764223839979,-200.0,0.00016359,2]
[394966692,1764223839989,-150.0,0.00016359,2]
[394966694,1764223839998,-150.0,0.00016359,2]
[394966696,1764223840008,-150.0,0.00016359,2]
[394966697,1764223840017,-150.0,0.00016359,2]
[394966699,1764223840027,-150.0,0.00016359,2]
[394966701,1764223840037,-250.0,0.00016359,2]
[394966703,1764223840048,-150.0,0.00016359,2]
[394966705,1764223840057,-3439.0,0.00016359,2]
[394966706,1764223840068,-1321.0,0.00016359,2]
[394966707,1764223840078,-420.0,0.00016362,2]